Workbook

Sheet 1
E1: Приложение 1 к Постановлению № 5 от 09.04. 2020 г « Об исполнении бюджета сельской администрации МО Малочергинское сельское поселение за 1 квартал 2020 года."
A2: Объем поступлений доходов в бюджет муниципального образования Малочергинское сельское поселение за 1 квартал 2020 году
A3: Код главы администратора* | B3: Код бюджетной классификации Российской Федерации | C3: Наименование доходов | D3: Изменения (+;-) | E3: Утверждено, сумма (тыс.рублей) | F3: Исполнено, сумма (тыс.рублей) | G3: Процент исполнения (процент)
A4: 1 | B4: 2 | C4: 3 | D4: 4 | E4: 5
A5: 182 | B5: 1 00 00000 00 0000 000 | C5: НАЛОГОВЫЕ И НЕНАЛОГОВЫЕ ДОХОДЫ | D5: =D6+D13 ->  | E5: =E6+E13 -> 329.00 | F5: =F6+F13 -> 129.07 | G5: =F5/E5*100 -> 39
C6: НАЛОГОВЫЕ ДОХОДЫ | D6: =D7+D8+D10 -> 42.1 | E6: =E7+E8+E10 -> 317.00 | F6: =F7+F8+F10 -> 127.56 | G6: 40
A7: 182 | B7: 1 01 02000 01 0000 110 | C7: Налог на доходы физических лиц | D7: 12.0 | E7: 15.00 | F7: 2.63 | G7: =F7/E7*100 -> 18
A8: 182 | B8: 1 05 00000 00 0000 000 | C8: Налоги на совокупный доход | D8: =D9 -> -1.2 | E8: =E9 -> 22.00 | F8: =F9 -> 66.48 | G8: =F8/E8*100 -> 302
A9: 182 | B9: 1 05 03000 01 0000 110 | C9: Единый сельскохозяйственный налог | D9: -1.2 | E9: 22.00 | F9: 66.48 | G9: 302
A10: 182 | B10: 1 06 00000 00 0000 000 | C10: Налоги на имущество | D10: =D11+D12 -> 31.3 | E10: =E11+E12 -> 280.00 | F10: =F11+F12 -> 58.44 | G10: 21
A11: 182 | B11: 1 06 01000 00 0000 110 | C11: Налог на имущество физических лиц | D11: -8.7 | E11: 40.00 | F11: 0.74 | G11: 2
A12: 182 | B12: 1 06 06000 00 0000 110 | C12: Земельный налог | D12: 40.0 | E12: 240.00 | F12: 57.70 | G12: 24
C13: НЕНАЛОГОВЫЕ ДОХОДЫ | D13: =#REF! ->  | E13: =E14 -> 12.00 | F13: =F14 -> 1.51 | G13: 13
A14: 801 | B14: 1 11 05035 10 0000 120 | C14: Доходы от сдачи в аренду имущества, находящегося в оперативном управлении органов управления сельских поселений и созданных ими учреждений (за исключением имущества муниципальных бюджетных и автономных учреждений) | E14: 12.00 | F14: 1.51 | G14: 13
A15: 801 | B15: 2 00 00000 00 0000 000 | C15: Безвозмездные поступления | D15: =D16 -> 0.0 | E15: =E16+E22 -> 2731.68 | F15: =F16+F22 -> 688.64 | G15: 25
A16: 801 | B16: 2 02 00000 00 0000 000 | C16: Безвозмездные поступления от других бюджетов бюджетной системы Российской Федерации | D16: 0.0 | E16: =E17 -> 2824.94 | F16: =F17 -> 781.91 | G16: 28
A17: 801 | B17: 2 02 00000 00 0000 000 | C17: Безвозмездные поступления от других бюджетов бюджетной системы Российской Федерации | E17: =SUM(E18:E21) -> 2824.94 | F17: =F18+F19+F20+F21 -> 781.91 | G17: 28
A18: 801 | B18: 2 02 15001 10 0000 150 | C18: Дотации бюджетам субъектов Российской Федерации и муниципальных образований | E18: 1720.51 | F18: 480.13 | G18: 28
A19: 801 | B19: 2 02 03000 00 0000 151 | C19: Субвенции бюджетам субъектов Российской Федерации и муниципальных образований | D19: 2.3 | E19: 100.10 | F19: 26.30 | G19: 26
A20: 801 | B20: 2 02 04014 10 0000 151 | C20: Межбюджетные трансферты, передаваемые бюджетам муниципальных образований на осуществление части полномочий по решению вопросов местного значения | D20: -45.8 | E20: 501.65 | F20: 113.75 | G20: 23
A21: 801 | B21: 2 02 04999 10 0000 151 | C21: Прочие межбюджетные трансферты, передаваемые бюджетам сельских поселений | D21: 45.8 | E21: 502.68 | F21: 161.73 | G21: 32
A22: 801 | B22: 2 19 60010 10 0000 150 | C22: Возврат прочих остатков субсидий, субвенций и иных межбюджетных трансфертов, имеющих целевое назначение, прошлых лет из бюджетов сельских поселений | E22: -93.27 | F22: -93.27 | G22: 100
C23: Всего доходов | D23: =D5+D15 ->  | E23: =E5+E15 -> 3060.68 | F23: =F5+F15 -> 817.71 | G23: 27

Sheet 2
B1: Приложение 2 к решению сессии Совета депутатов МО Малочергинское сельское поселение № 5 от 09.04 2020 г « Об исполнении бюджета сельской администрации МО Малочергинское сельское поселение за 1 квартал 2020 год
A3: Распределение бюджетных ассигнований по разделам, подразделам классификации расходов бюджета муниципального образования Малочергинское сельское поселение за 1 квартал 2020 год
A5: Наименование показателя | B5: Раздел, подраздел | C5: Изменения (+;-) | D5: Утверждено,(тыс.руб.) | E5: Исполнено,(тыс.руб.) | F5: Процент исполнения (процент)
A6: ОБЩЕГОСУДАРСТВЕННЫЕ ВОПРОСЫ | B6: 0100 | C6: =SUM(C7:C8) -> 130.8 | D6: =SUM(D7:D10) -> 1804.26 | E6: =SUM(E7:E10) -> 442.33 | F6: =E6/D6*100 -> 24.5
A7: Функционирование высшего должностного лица субъекта Российской Федерации и муниципального образования | B7: 0102 | C7: -38.0 | D7: 350.00 | E7: 68.69 | F7: =E7/D7*100 -> 19.6
A8: Функционирование Правительства Российской Федерации, высших исполнительных органов государственной власти субъектов Российской Федерации, местных администраций | B8: 0104 | C8: 168.8 | D8: 1108.74 | E8: 241.34 | F8: 21.8
A9: Резервные фонды | B9: 0111 | D9: 20.00
A10: ДРУГИЕ ОБЩЕГОСУДАРСТВЕННЫЕ РАСХОДЫ | B10: 0113 | D10: 325.52 | E10: 132.30 | F10: 40.6
A11: НАЦИОНАЛЬНАЯ ОБОРОНА | B11: 0200 | C11: =C12 -> 50.5 | D11: =D12 -> 100.10 | E11: =E12 -> 26.30 | F11: 26.3
A12: Мобилизационная и вневойсковая подготовка | B12: 0203 | C12: 50.5 | D12: 100.10 | E12: 26.30 | F12: 26.3
A13: НАЦИОНАЛЬНАЯ ЭКОНОМИКА | B13: 0400 | D13: =D14+D15 -> 528.35 | E13: =E14 -> 0.00 | F13: 0.0
A14: Дорожное хозяйство (дорожные фонды) | B14: 0409 | D14: 408.35 | E14: 0.00 | F14: 0.0
A15: Другие вопросы в области национальной экономики | B15: 0412 | D15: 120.00
A16: ЖИЛИЩНО-КОММУНАЛЬНОЕ ХОЗЯЙСТВО | B16: 0500 | D16: =D18+D17 -> 284.58 | E16: =E17+E18 -> 165.25 | F16: 58.1
A17: Коммунальное хозяйство | B17: 0502 | D17: 184.58 | E17: 101.00 | F17: 54.7
A18: БЛАГОУСТРОЙСТВО | B18: 0503 | D18: 100.00 | E18: 64.25 | F18: 64.3
A19: ФИЗИЧЕСКАЯ КУЛЬТУРА И СПОРТ | B19: 1100 | C19: 11 | D19: =D20 -> 530,7 | E19: =E20 -> 146.45 | F19: 27.6
A20: Другие вопросы в области физической культуры и спорта | B20: 1105 | D20: 530,7 | E20: 146.45 | F20: 27.6
A21: ВСЕГО РАСХОДОВ | C21: =C6+#REF!+#REF!+C11+C13 ->  | D21: =D6+D11+D13+D16+D19 -> 3247.99 | E21: =E6+E11+E13+E16+E19 -> 780.33 | F21: 24.0

Sheet Лист1
C1: Приложение 3 к Постановлению № 5 от09.04. 2020 г « Об исполнении бюджета сельской администрации МО Малочергинское сельское поселение за 1 квартал 2020 года."
A2: Ведомственная структура расходов бюджета муниципального образования Малочергинское сельское поселение на 2020 год
H3: (тыс. рублей)
A4: Наименование главного распорядителя | B4: Гл | C4: Рз | D4: ПР | E4: ЦСР | F4: ВР | G4: Утверждено, (тыс.руб.) | H4: Исполнено, (тыс.руб.) | I4: Процент исполнения (процент)
A5: 1 | B5: 2 | C5: 3 | D5: 4 | E5: 5 | F5: 6 | G5: 7 | H5: 8 | I5: 9
A6: ОБЩЕГОСУДАРСТВЕННЫЕ ВОПРОСЫ | B6: 801 | C6: 01 | D6: 00 | G6: =G7+G11+G24+G33 -> 1804.25 | H6: =H7+H11+H24+H33 -> 442.33 | I6: =H6/G6*100 -> 24.5
A7: Функционирование высшего должностного лица субьекта Российской Федерации и муниципального образования | B7: 801 | C7: 01 | D7: 02 | G7: =G8 -> 350.00 | H7: 68.69 | I7: 19.6
A8: Непрограммные направления деятельности сельской администрации | B8: 801 | C8: 01 | D8: 02 | G8: 350.00 | H8: 68.69 | I8: 19.6
A9: Обеспечение деятельности высшего должностного лица | B9: 801 | C9: 01 | D9: 02 | E9: 99 0 Л0 10100 | G9: 350.00 | H9: 68.69 | I9: 19.6
A10: Расходы на выплаты персоналу в целях обеспечения выполнения функций государственными (муниципальными) органами, казенными учреждениями, органами управления государственными внебюджетными фондами | B10: 801 | C10: 01 | D10: 02 | E10: 99 0 Л0 10100 | F10: 100 | G10: 350.00 | H10: 68.69 | I10: 19.6
A11: Функционирование Правительства Российской Федерации, высших исполнительных органов государственной власти субъектов Российской Федерации, местных администрации | B11: 801 | C11: 01 | D11: 04 | G11: =G12+G20 -> 1108.74 | H11: =H12+H20 -> 241.34 | I11: 21.8
A12: Подпрограмма "Развитие экономического и налогового потенциал" | B12: 801 | C12: 01 | D12: 04 | E12: 01 2 00 00000 | G12: =G13+G17 -> 113.74 | H12: =H13+H17 -> 23.75 | I12: 20.9
A13: Основное мероприятие "Формирование эффективной системы управления и распоряжения муниципальными финансами" | B13: 801 | C13: 01 | D13: 04 | E13: 01 2 01 00000 | G13: =G14+G16 -> 72.02 | H13: =H14+H16 -> 23.75 | I13: 33.0
A14: Мероприятия сфере информационно-коммуникационных технологий | B14: 801 | C14: 01 | D14: 04 | E14: 01 2 01 10200 | G14: =G15 -> 30.00 | H14: =H15 -> 0.00 | I14: 0.0
A15: Закупка товаров, работ и услуг для обеспечения государственных (муниципальных) нужд | B15: 801 | C15: 01 | D15: 04 | E15: 01 2 01 10200 | F15: 200 | G15: 30.00 | H15: 0.00 | I15: 0.0
A16: Уплата налогов, сборов и иных платежей | B16: 801 | C16: 01 | D16: 04 | E16: 01 2 01 10200 | F16: 800 | G16: 42.02 | H16: 23.75 | I16: 56.5
A17: Основное мероприятие "Повышение эффективности управления муниципальной собственностью" | B17: 801 | C17: 01 | D17: 04 | E17: 01 2 02 10000 | G17: =G18+G19 -> 41.72 | H17: =H18+H19 -> 0.00 | I17: 0.0
A18: Иные межбюджетные трансферты | B18: 801 | C18: 01 | D18: 04 | E18: 01 2 02 10200 | F18: 500 | G18: 41.72 | H18: 0.00 | I18: 0.0
A19: Закупка товаров, работ и услуг для обеспечения государственных (муниципальных) нужд | B19: 801 | C19: 01 | D19: 04 | E19: 01 2 02 10200 | F19: 200
A20: Подпрограмма "Создание условий реализаций муниципальной программы" | B20: 801 | C20: 01 | D20: 04 | E20: 01 3 00 00000 | G20: =G21 -> 995.00 | H20: =H21 -> 217.59 | I20: 21.9
A21: Основное мероприятие "Повышение эффективности муниципального управления" | B21: 801 | C21: 01 | D21: 04 | E21: 01 3 01 00000 | G21: =G22+G23 -> 995.00 | H21: =H22+H23 -> 217.59 | I21: 21.9
A22: Расходы на выплаты персоналу в целях обеспечения выполнения функций государственными (муниципальными) органами, казенными учреждениями, органами управления государственными внебюджетными фондами | B22: 801 | C22: 01 | D22: 04 | E22: 01 3 У1 80110 | F22: 100 | G22: 713.20 | H22: 198.42 | I22: 27.8
A23: Расходы на выплаты персоналу в целях обеспечения выполнения функций государственными (муниципальными) органами, казенными учреждениями, органами управления государственными внебюджетными фондами | B23: 801 | C23: 01 | D23: 04 | E23: 01 3 У1 S8500 | F23: 100 | G23: 281.80 | H23: 19.17 | I23: 6.8
A24: РЕЗЕРВНЫЕ ФОНДЫ | B24: 801 | C24: 01 | D24: 11 | G24: =G25 -> 20.00 | H24: =H25 -> 0.00 | I24: 0.0
A25: Подпрограмма "Обеспечение безопасности населения и профилактика терроризма и экстремизма" | B25: 801 | C25: 01 | D25: 11 | E25: 02 2 00 00000 | G25: =G26+G28+G31 -> 20.00 | H25: =H26+H28+H31 -> 0.00 | I25: 0.0
A26: Основное мероприятие "Обеспечение первичных мер пожарной безопасности в границах поселений" | B26: 801 | C26: 01 | D26: 11 | E26: 02 2 01 Ш1000 | G26: =G27 -> 0.00 | H26: =H27 -> 0.00
A27: Иные бюджетные ассигнования | B27: 801 | C27: 01 | D27: 11 | E27: 02 2 01 Ш1000 | F27: 800
A28: Основное мероприятие " Профилактика терроризма и экстремизма в границах поселения" | B28: 801 | C28: 01 | D28: 11 | E28: 02 2 02 Ш2000 | G28: =G29 -> 20.00 | H28: =H29 -> 0.00 | I28: 0.0
A29: Совершенствование системы информационно- пропагандистского противодействия терроризму и экстремизму | B29: 801 | C29: 01 | D29: 11 | E29: 02 2 02 Ш2000 | G29: =G30 -> 20.00 | H29: =H30 -> 0.00 | I29: 0.0
A30: Иные бюджетные ассигнования | B30: 801 | C30: 01 | D30: 11 | E30: 02 2 02 Ш2000 | F30: 800 | G30: 20.00 | I30: 0.0
A31: Основное мероприятие " Предупреждение и ликвидация последствий чрезвычайных ситуаций в границах поселения" | B31: 801 | C31: 01 | D31: 11 | E31: 02 2 03 Ш3000
A32: Иные бюджетные ассигнования | B32: 801 | C32: 01 | D32: 11 | E32: 02 2 03 Ш3000 | F32: 800
A33: ДРУГИЕ ОБЩЕГОСУДАРСТВЕННЫЕ ВОПРОСЫ | B33: 801 | C33: 01 | D33: 13 | G33: =G34+G37 -> 325.52 | H33: =H34+H37 -> 132.30 | I33: 40.6
A34: Подпрограмма "Развитие экономического и налогового потенциал" | B34: 801 | C34: 01 | D34: 13 | E34: 01 2 02 00000 | G34: =G35 -> 201.29 | H34: =H35 -> 110.14 | I34: 54.7
A35: Основное мероприятие "Повышение эффективности управления муниципальной собственностью" | B35: 801 | C35: 01 | D35: 13 | E35: 01 2 02 10200 | G35: =G36 -> 201.29 | H35: =H36 -> 110.14 | I35: 54.7
A36: Закупка товаров, работ и услуг для обеспечения государственных (муниципальных) нужд | B36: 801 | C36: 01 | D36: 13 | E36: 01 2 02 10200 | F36: 200 | G36: 201.29 | H36: 110.14 | I36: 54.7
A37: Подпрограмма "Создание условий реализаций муниципальной программы" | B37: 801 | C37: 01 | D37: 13 | E37: 01 3 01 00000 | G37: =G38+G40 -> 124.23 | H37: =H38+H40 -> 22.16 | I37: 17.8
A38: Основное мероприятие "Повышение эффективности муниципального управления" | B38: 801 | C38: 01 | D38: 13 | E38: 01 3 01 03100 | G38: =G39 -> 9.60 | H38: =H39 -> 0.00 | I38: 0.0
A39: Иные выплаты, за исключением фонда оплаты труда государственных (муниципальных) органов, лицам, привлекаемым согласно законодательству для выполнения отдельных полномочий | B39: 801 | C39: 01 | D39: 13 | E39: 01 3 01 03100 | F39: 100 | G39: 9.60 | H39: 0.00 | I39: 0.0
A40: Закупка товаров, работ и услуг для обеспечения государственных (муниципальных) нужд | B40: 801 | C40: 01 | D40: 13 | E40: 01 3 01 00200 | F40: 200 | G40: 114.63 | H40: 22.16 | I40: 19.3
A41: НАЦИОНАЛЬНАЯ ОБОРОНА | B41: 801 | C41: 02 | D41: 00 | G41: =G42 -> 100.10 | H41: 26.30 | I41: 26.3
A42: Мобилизационная и вневойсковая подготовка | B42: 801 | C42: 02 | D42: 03 | E42: 99 0 00 00000 | G42: 100.10 | H42: 26.30 | I42: 26.3
A43: Осуществление первичного воинского учета на территориях, где отсутствуют военные комиссариаты | B43: 801 | C43: 02 | D43: 03 | E43: 99 0 Л1 51180 | G43: 100.10 | H43: 26.30 | I43: 26.3
A44: Расходы на выплаты персоналу в целях обеспечения выполнения функций государственными (муниципальными) органами, казенными учреждениями, органами управления государственными внебюджетными фондами | B44: 801 | C44: 02 | D44: 03 | E44: 99 0 Л1 51180 | F44: 100 | G44: 100.10 | H44: 26.30 | I44: 26.3
A45: НАЦИОНАЛЬНАЯ ЭКОНОМИКА | B45: 801 | C45: 04 | D45: 00 | G45: =G46 -> 528.35 | H45: =H48 -> 0.00 | I45: 0.0
A46: Подпрограмма "Развитие инженерно- коммунального и дорожно-транспортного комплекса" | B46: 801 | C46: 04 | D46: 00 | E46: 02 1 00 00000 | G46: =G47+G50 -> 528.35 | I46: 0.0
A47: ДОРОЖНОЕ ХОЗЯЙСТВО | B47: 801 | C47: 04 | D47: 09 | E47: 02 1 01 Д0000 | G47: =G48 -> 408.35 | H47: =H48 -> 0.00 | I47: 0.0
A48: Основное мероприятие "Содержание и развитие дорожно-транспортного комплекса" | B48: 801 | C48: 04 | D48: 09 | E48: 02 1 01 Д0000 | G48: 408.35 | H48: 0.00 | I48: 0.0
A49: Закупка товаров, работ и услуг для обеспечения государственных (муниципальных) нужд | B49: 801 | C49: 04 | D49: 09 | E49: 02 1 01 Д0000 | F49: 200 | G49: 408.35 | H49: 0.00 | I49: 0.0
A50: Другие вопросы в области национальной экономики | B50: 801 | C50: 04 | D50: 12 | G50: =G51 -> 120.00 | I50: 0.0
A51: Организация мероприятий по обеспечению муниципальных нужд в области геодезии и картографии | B51: 801 | C51: 04 | D51: 12 | E51: 02 1 02 S7900 | G51: =G52 -> 120.00 | I51: 0.0
A52: Закупка товаров, работ и услуг для обеспечения государственных (муниципальных) нужд | B52: 801 | C52: 04 | D52: 12 | E52: 02 1 02 S7900 | F52: 200 | G52: 120.00 | I52: 0.0
A53: ЖИЛИЩНО-КОММУНАЛЬНОЕ ХОЗЯЙСТВО | B53: 801 | C53: 05 | D53: 00 | G53: =G54+G59 -> 284.58 | H53: =H54+H59 -> 165.25 | I53: 58.1
A54: Коммунальное хозяйство | B54: 801 | C54: 05 | D54: 02 | G54: =G55 -> 184.58 | H54: =H55 -> 101.00 | I54: 54.7
A55: Подпрограмма "Развитие инженерно- коммунального и дорожно-транспортного комплекса" | B55: 801 | C55: 05 | D55: 02 | E55: 02 1 02 00000 | G55: =G56 -> 184.58 | H55: =H56 -> 101.00 | I55: 54.7
A56: Основное мероприятие "Содержание инженерно -коммунальной инфраструктуры | B56: 801 | C56: 05 | D56: 02 | E56: 02 1 02 00000 | G56: =G57+G58 -> 184.58 | H56: =H57+H58 -> 101.00 | I56: 54.7
A57: Закупка товаров, работ и услуг для обеспечения государственных (муниципальных) нужд | B57: 801 | C57: 05 | D57: 02 | E57: 02 1 02 01400 | F57: 200 | G57: 93.30 | H57: 9.72 | I57: 10.4
A58: Закупка товаров, работ и услуг для обеспечения государственных (муниципальных) нужд | B58: 801 | C58: 05 | D58: 02 | E58: 02 1 02 Ш1000 | F58: 200 | G58: 91.28 | H58: =G58 -> 91.28 | I58: 100.0
A59: Благоустройство | B59: 801 | C59: 05 | D59: 03 | G59: =G60 -> 100.00 | H59: 64.25 | I59: 64.3
A60: Подпрограмма "Повышение уровня благоустройство территории" | B60: 801 | C60: 05 | D60: 03 | E60: 02 1 00 00000 | G60: 100.00 | H60: 64.25 | I60: 64.3
A61: Основное мероприятие "Подержание и улучшение санитрарного и эстетического состояния территории" | B61: 801 | C61: 05 | D61: 03 | E61: 02 3 01 10000 | G61: 100.00 | H61: 64.25 | I61: 64.3
A62: Закупка товаров, работ и услуг для обеспечения государственных (муниципальных) нужд | B62: 801 | C62: 05 | D62: 03 | E62: 02 3 01 10000 | F62: 200 | G62: 100.00 | H62: 64.25 | I62: 64.3
A63: ФИЗИЧЕСКАЯ КУЛЬТУРА И СПОРТ | B63: 801 | C63: 11 | D63: 00 | G63: =G64 -> 530.70 | H63: 146.45 | I63: 27.6
A64: Другие вопросы в области физической культуры и спорта | B64: 801 | C64: 11 | D64: 05 | G64: 530.70 | H64: 146.45 | I64: 27.6
A65: Подпрограмма "Создание условий реализаций муниципальной программы" | B65: 801 | C65: 11 | D65: 05 | E65: 01 3 01 00000 | G65: 530.70 | H65: 146.45 | I65: 27.6
A66: Основное мероприятие "Повышение эффективности муниципального управления" | B66: 801 | C66: 11 | D66: 05 | E66: 01 3 01 01100 | G66: 530.70 | H66: 146.45 | I66: 27.6
A67: Расходы на выплаты персоналу в целях обеспечения выполнения функций государственными (муниципальными) органами, казенными учреждениями, органами управления государственными внебюджетными фондами | B67: 801 | C67: 11 | D67: 05 | E67: 01 3 01 01100 | F67: 100 | G67: =407.604+123.096 -> 530.70 | H67: 146.45 | I67: 27.6
A68: Условно утверждаемые расходы | B68: 999 | C68: 99 | D68: 99 | E68: 99 9 99 99999
A69: ВСЕГО РАСХОДОВ | G69: =G6+G41+G45+G53+G63 -> 3247.99 | H69: =H6+H41+H45+H53+H63 -> 780.33 | I69: 24.0
